{"text_format":"1","workbook":"xlsx","n_sheets":1,"sheets":["Race"],"not_rendered":{"charts":0,"images":2,"macros":1,"external_links":0,"defined_names":0,"comments":0,"pivot_tables":0},"unopened":[],"bounds":{"document_bytes":16777216,"sheet_cells":100000,"rows_first":2000,"rows_last":500,"rows_between":2000,"halvings":0,"cell_chars":16384,"cell_head_chars":4096},"cells_cut":0,"cells_raw":0,"read":"whole","date_system":"1900"}

{"sheet":"Race","index":0,"n_rows":28,"n_cols":75,"rows_kept":28,"cut":false,"hidden":false,"merged":[[20,58,22,58],[11,58,13,58],[5,58,7,58],[8,58,10,58],[14,58,16,58],[17,58,19,58],[4,5,4,6],[4,7,4,56],[2,3,2,4],[2,9,2,11],[2,18,2,19],[2,40,2,44],[3,40,3,41],[3,42,3,44],[27,17,27,35],[0,18,0,32],[26,21,26,32],[0,49,0,56],[2,7,2,8],[2,20,2,23],[2,24,2,25],[2,26,2,29],[2,30,2,31],[2,32,2,37],[2,13,2,14],[2,15,2,17],[3,13,3,37]]}
[null,null,null,null,null,null,null,null,null,null,null,null,null,null,null,null,null,null,"【TIT_Race_Game】",null,null,null,null,null,null,null,null,null,null,null,null,null,null,null,null,null,null,null,null,null,null,null,null,null,null,null,null,null,null,{"$f":"TODAY()","v":"2021-02-25"}]
[null,null,"枠を選択して下さい。",null,null,null,null,null,null,null,null,null,null,null,null,null,null,null,null,null,null,null,null,null,null,null,null,null,null,null,null,null,null,null,null,null,null,null,null,null,null,null,null,null,null,1,2,3,4,5,6,7,8,9,10,11,12]
[null,null,"持点",100,null,null,null,"馬券",null,{"$f":"IF(E7<>\"\",1,IF(E10<>\"\",2,IF(E13<>\"\",3,IF(E16<>\"\",4,IF(E19<>\"\",5,IF(E22<>\"\",6,\"\"))))))","v":""},null,null,null,"着順",null,{"$f":"IF(J3=\"\",\"\",IF(VLOOKUP(J3,B7:BF22,57,FALSE)=0,\"\",VLOOKUP(J3,B7:BF22,57,FALSE)))","v":""},null,null,"賭点",null,{"$f":"IF(J3=\"\",\"\",VLOOKUP(J3,B7:BF22,4,FALSE))","v":""},null,null,null,"ｵｯｽﾞ",null,{"$f":"IF(J3=\"\",\"\",VLOOKUP(J3,B7:BF22,2,FALSE))","v":""},null,null,null,"勝点",null,{"$f":"IF(P3=1,ROUNDDOWN(U3*AA3,0),\"\")","v":""},null,null,null,null,null,null,null,"本日の勝枠"]
[null,null,null,null,null,null,null,null,null,null,null,null,null,{"$f":"IF(P3=\"\",\"\",IF(P3=1,\"1着大当たりです。おめでとう！！！！\",\"残念ながら\"&P3&\"着です。次回頑張って下さい。\"))","v":""},null,null,null,null,null,null,null,null,null,null,null,null,null,null,null,null,null,null,null,null,null,null,null,null,null,null,"成績",null,{"$f":"IF(AT3=\"\",\"\",COUNTIF(AT24:BE24,\"○\")/COUNTA(AT3:BE3))","v":""}]
["枠勝率","枠","ｵｯｽﾞ",10,null,"ｹﾞｰﾄ",null,1,null,null,null,null,null,null,null,null,null,null,null,null,null,null,null,null,null,null,null,null,null,null,null,null,null,null,null,null,null,null,null,null,null,null,null,null,null,null,null,null,null,null,null,null,null,null,null,null,null,null,null,null,null,null,null,null,null,null,null,null,null,null,"位置","移動",235,470,712]
[null,null,null,null,null,null,null,null,null,null,null,null,null,null,null,null,null,null,null,null,null,null,null,null,null,null,null,null,null,null,null,null,null,null,null,null,null,null,null,null,null,null,null,null,null,null,null,null,null,null,null,null,null,null,null,null,null,null,{"$f":"IF(BF7=1,\"◎\",IF(BF7=2,\"○\",IF(BF7=3,\"△\",\"\")))","v":""}]
[{"$f":"IF($AT$3=\"\",0,COUNTIF($AT$3:$BE$3,B7)/COUNTA($AT$3:$BE$3))","v":0},1,8,null,null,null,null,null,null,null,null,null,null,null,null,null,null,null,null,null,null,null,null,null,null,null,null,null,null,null,null,null,null,null,null,null,null,null,null,null,null,null,null,null,null,null,null,null,null,null,null,null,null,null,null,null,null,null,null,null,null,null,null,null,null,null,null,null,null,null,0,{"$f":"IF(BS7<=BU$5,BU7,IF(BS7<=BV$5,BV7,BW7))","v":10},{"$f":"RANDBETWEEN(10,40)","v":10},{"$f":"RANDBETWEEN(10,40)","v":40},{"$f":"RANDBETWEEN(10,40)","v":39}]
[]
[null,null,null,null,null,null,null,null,null,null,null,null,null,null,null,null,null,null,null,null,null,null,null,null,null,null,null,null,null,null,null,null,null,null,null,null,null,null,null,null,null,null,null,null,null,null,null,null,null,null,null,null,null,null,null,null,null,null,{"$f":"IF(BF10=1,\"◎\",IF(BF10=2,\"○\",IF(BF10=3,\"△\",\"\")))","v":""}]
[{"$f":"IF($AT$3=\"\",0,COUNTIF($AT$3:$BE$3,B10)/COUNTA($AT$3:$BE$3))","v":0},2,4.5,null,null,null,null,null,null,null,null,null,null,null,null,null,null,null,null,null,null,null,null,null,null,null,null,null,null,null,null,null,null,null,null,null,null,null,null,null,null,null,null,null,null,null,null,null,null,null,null,null,null,null,null,null,null,null,null,null,null,null,null,null,null,null,null,null,null,null,0,{"$f":"IF(BS10<=BU$5,BU10,IF(BS10<=BV$5,BV10,BW10))","v":38},{"$f":"RANDBETWEEN(10,40)","v":38},{"$f":"RANDBETWEEN(10,40)","v":16},{"$f":"RANDBETWEEN(10,40)","v":24}]
[]
[null,null,null,null,null,null,null,null,null,null,null,null,null,null,null,null,null,null,null,null,null,null,null,null,null,null,null,null,null,null,null,null,null,null,null,null,null,null,null,null,null,null,null,null,null,null,null,null,null,null,null,null,null,null,null,null,null,null,{"$f":"IF(BF13=1,\"◎\",IF(BF13=2,\"○\",IF(BF13=3,\"△\",\"\")))","v":""}]
[{"$f":"IF($AT$3=\"\",0,COUNTIF($AT$3:$BE$3,B13)/COUNTA($AT$3:$BE$3))","v":0},3,9.5,null,null,null,null,null,null,null,null,null,null,null,null,null,null,null,null,null,null,null,null,null,null,null,null,null,null,null,null,null,null,null,null,null,null,null,null,null,null,null,null,null,null,null,null,null,null,null,null,null,null,null,null,null,null,null,null,null,null,null,null,null,null,null,null,null,null,null,0,{"$f":"IF(BS13<=BU$5,BU13,IF(BS13<=BV$5,BV13,BW13))","v":34},{"$f":"RANDBETWEEN(10,40)","v":34},{"$f":"RANDBETWEEN(10,40)","v":36},{"$f":"RANDBETWEEN(10,40)","v":17}]
[]
[null,null,null,null,null,null,null,null,null,null,null,null,null,null,null,null,null,null,null,null,null,null,null,null,null,null,null,null,null,null,null,null,null,null,null,null,null,null,null,null,null,null,null,null,null,null,null,null,null,null,null,null,null,null,null,null,null,null,{"$f":"IF(BF16=1,\"◎\",IF(BF16=2,\"○\",IF(BF16=3,\"△\",\"\")))","v":""}]
[{"$f":"IF($AT$3=\"\",0,COUNTIF($AT$3:$BE$3,B16)/COUNTA($AT$3:$BE$3))","v":0},4,3.5,null,null,null,null,null,null,null,null,null,null,null,null,null,null,null,null,null,null,null,null,null,null,null,null,null,null,null,null,null,null,null,null,null,null,null,null,null,null,null,null,null,null,null,null,null,null,null,null,null,null,null,null,null,null,null,null,null,null,null,null,null,null,null,null,null,null,null,0,{"$f":"IF(BS16<=BU$5,BU16,IF(BS16<=BV$5,BV16,BW16))","v":36},{"$f":"RANDBETWEEN(10,40)","v":36},{"$f":"RANDBETWEEN(10,40)","v":26},{"$f":"RANDBETWEEN(10,40)","v":32}]
[]
[null,null,null,null,null,null,null,null,null,null,null,null,null,null,null,null,null,null,null,null,null,null,null,null,null,null,null,null,null,null,null,null,null,null,null,null,null,null,null,null,null,null,null,null,null,null,null,null,null,null,null,null,null,null,null,null,null,null,{"$f":"IF(BF19=1,\"◎\",IF(BF19=2,\"○\",IF(BF19=3,\"△\",\"\")))","v":""}]
[{"$f":"IF($AT$3=\"\",0,COUNTIF($AT$3:$BE$3,B19)/COUNTA($AT$3:$BE$3))","v":0},5,7.5,null,null,null,null,null,null,null,null,null,null,null,null,null,null,null,null,null,null,null,null,null,null,null,null,null,null,null,null,null,null,null,null,null,null,null,null,null,null,null,null,null,null,null,null,null,null,null,null,null,null,null,null,null,null,null,null,null,null,null,null,null,null,null,null,null,null,null,0,{"$f":"IF(BS19<=BU$5,BU19,IF(BS19<=BV$5,BV19,BW19))","v":19},{"$f":"RANDBETWEEN(10,40)","v":19},{"$f":"RANDBETWEEN(10,40)","v":20},{"$f":"RANDBETWEEN(10,40)","v":22}]
[]
[null,null,null,null,null,null,null,null,null,null,null,null,null,null,null,null,null,null,null,null,null,null,null,null,null,null,null,null,null,null,null,null,null,null,null,null,null,null,null,null,null,null,null,null,null,null,null,null,null,null,null,null,null,null,null,null,null,null,{"$f":"IF(BF22=1,\"◎\",IF(BF22=2,\"○\",IF(BF22=3,\"△\",\"\")))","v":""}]
[{"$f":"IF($AT$3=\"\",0,COUNTIF($AT$3:$BE$3,B22)/COUNTA($AT$3:$BE$3))","v":0},6,8.5,null,null,null,null,null,null,null,null,null,null,null,null,null,null,null,null,null,null,null,null,null,null,null,null,null,null,null,null,null,null,null,null,null,null,null,null,null,null,null,null,null,null,null,null,null,null,null,null,null,null,null,null,null,null,null,null,null,null,null,null,null,null,null,null,null,null,null,0,{"$f":"IF(BS22<=BU$5,BU22,IF(BS22<=BV$5,BV22,BW22))","v":13},{"$f":"RANDBETWEEN(10,40)","v":13},{"$f":"RANDBETWEEN(10,40)","v":28},{"$f":"RANDBETWEEN(10,40)","v":27}]
[]
[null,null,null,"  ⇧のボタンで枠を選択して下さい。",null,null,null,null,null,null,null,null,null,null,null,null,null,null,null,null,null,null,null,null,null,null,null,null,null,null,null,null,null,null,null,null,null,null,null,null,null,null,null,null,null,{"$f":"IF(AT3=\"\",\"\",IF(AT3=AT4,\"○\",\"×\"))","v":""},{"$f":"IF(AU3=\"\",\"\",IF(AU3=AU4,\"○\",\"×\"))","v":""},"","","","","","","","","",""]
[]
[]
[null,null,null,null,null,null,null,null,null,null,null,null,null,null,null,null,null,null,null,null,null,"株式会社つくばＩＴパートナー"]
[null,null,null,null,null,null,null,null,null,null,null,null,null,null,null,null,null,"Copyright © 2017 Tsukuba IT Partner Co., Ltd. All Rights Reserved."]